bitfinex-derivatives/quotes_ETHF0:USTF0_20240818
["timestamp","ask_amount","ask_price","bid_price","bid_amount"]
[1723955381127,3.2078,2600.1,2599.8,0.37290489]
[1723955381337,0.41896943,2600.0,2599.8,0.37290489]
[1723955381628,0.99344212,2600.2,2599.8,0.37290489]
[1723955381831,0.41896653,2600.1,2599.8,0.37290489]
[1723955382133,0.41896653,2600.0,2599.8,0.37290489]
[1723955382333,4.20124212,2600.1,2599.8,0.37290489]
[1723955382334,0.41896653,2599.9,2599.8,0.37290489]
[1723955384630,0.418954,2599.9,2599.8,0.37290489]
[1723955385135,0.41895028,2599.9,2599.8,0.37290489]
[1723955385534,0.41895028,2599.9,2599.8,4.21930489]
[1723955385737,0.41895028,2599.9,2599.8,5.18078489]
[1723955386038,0.41895028,2599.9,2599.8,0.37290489]
[1723955386722,1.4123924,2599.9,2599.8,0.37290489]
[1723955388335,0.41895028,2599.9,2599.8,0.37290489]
[1723955388539,1.41561872,2599.9,2599.8,0.37290489]
[1723955388838,1.41562121,2599.9,2599.8,0.37290489]
[1723955389229,0.41895277,2599.9,2599.8,0.37290489]
[1723955389430,1.90911595,2599.9,2599.8,0.37290489]
[1723955390432,1.99168452,2599.9,2599.8,0.37290489]
[1723955390637,2.18400388,2599.9,2599.8,0.37290489]
[1723955391442,0.6938407,2599.9,2599.8,0.37290489]
[1723955391634,0.69384176,2599.9,2599.8,0.37290489]
[1723955391831,0.69384176,2599.9,2599.8,0.01450489]
[1723955392042,10.73870691,2599.9,2599.8,0.00503978]
[1723955392243,11.52163824,2599.9,2599.8,0.00503978]
[1723955392630,14.5019646,2599.9,2599.8,0.00503978]
[1723955392856,10.78309069,2599.9,2599.8,0.00503978]
[1723955393040,14.26486331,2599.9,2599.8,0.00954759]
[1723955393344,14.26486331,2599.9,2598.9,0.3433]
[1723955393345,0.96156,2599.6,2598.9,0.3433]
[1723955393531,0.96156,2599.6,2598.9,0.722]
[1723955393532,0.99740463,2599.0,2598.9,0.722]
[1723955393739,1.41627401,2599.0,2598.9,0.722]
[1723955394132,1.41627401,2599.0,2598.9,0.72691652]
[1723955394439,2.1899439,2599.0,2598.9,0.72691652]
[1723955394842,0.69383695,2599.0,2598.9,0.00491652]
[1723955395141,0.50145435,2599.0,2598.9,0.00491652]
[1723955395336,6.34223111,2599.0,2598.9,0.00491652]
[1723955395543,12.68007095,2599.0,2598.4,3.014]
[1723955395847,5.19999896,2598.5,2598.4,3.014]
[1723955396153,2.49365331,2598.5,2598.4,3.014]
[1723955396446,7.55805435,2598.5,2598.4,3.014]
[1723955396639,7.56149798,2598.5,2598.4,3.01890313]
[1723955396857,7.06004363,2598.5,2598.4,3.01890313]
[1723955397144,1.91465656,2598.5,2598.4,3.01890313]
[1723955397369,8.55558963,2598.5,2598.4,3.01890313]
[1723955397648,9.93321418,2598.5,2598.4,3.01890313]
[1723955397851,14.93321418,2598.5,2598.4,3.01890313]
[1723955398242,15.51550808,2598.5,2598.4,3.01890313]
[1723955398443,13.52331223,2598.5,2598.4,3.01890313]
[1723955398649,15.51551119,2598.5,2598.4,2.46540313]
[1723955398839,3.71255223,2598.5,2598.4,2.46540313]
[1723955399042,3.62992056,2598.5,2598.4,2.46540313]
[1723955400247,3.62992056,2598.5,2598.4,3.77579313]
[1723955400452,3.21124363,2598.5,2598.4,2.81380313]
[1723955400668,3.21124363,2598.5,2598.4,2.25980313]
[1723955400669,3.63002961,2598.5,2598.4,2.25980313]
[1723955401045,3.21124363,2598.5,2598.4,2.25980313]
[1723955401444,3.63004565,2598.5,2598.4,2.25980313]
[1723955401645,3.21124363,2598.5,2598.4,2.25980313]
[1723955401957,7.47883497,2598.5,2598.4,1.91140313]
[1723955402154,13.44079497,2598.5,2598.4,1.91140313]
[1723955402358,14.43442051,2598.5,2598.4,1.91140313]
[1723955402549,14.93126264,2598.5,2598.4,1.91140313]
[1723955402854,13.44079497,2598.5,2598.4,1.91140313]
[1723955403452,14.92787104,2598.5,2598.4,1.91140313]
[1723955403665,14.50905,2598.5,2598.4,1.91140313]
[1723955403848,14.92779519,2598.5,2598.4,1.91140313]
[1723955404453,14.92779519,2598.5,2598.4,0.53429313]
[1723955404650,14.27407281,2598.5,2598.4,0.53429313]
[1723955404955,16.76459387,2598.5,2598.4,0.20551962]
[1723955405151,16.76459387,2598.5,2597.5,6.47471824]
[1723955405152,16.60207005,2598.5,2597.5,6.47471824]
[1723955405352,3.2078,2597.6,2597.5,6.47471824]
[1723955405546,3.2078,2597.6,2597.5,6.47843881]
[1723955405547,7.0574,2597.6,2597.5,6.47843881]
[1723955405747,12.0574,2597.6,2597.5,6.47843881]
[1723955405951,7.0574,2597.6,2597.5,6.47843881]
[1723955406453,12.0574,2597.6,2597.5,6.47843881]
[1723955406767,13.01969,2597.6,2597.5,6.47843881]
[1723955407953,15.34769,2597.6,2597.5,6.47843881]
[1723955408461,14.3854,2597.6,2597.5,6.47843881]
[1723955408659,9.3854,2597.6,2597.5,6.47843881]
[1723955408864,7.0574,2597.6,2597.5,6.47843881]
[1723955410860,13.01969,2597.6,2597.5,6.47843881]
[1723955411358,7.0574,2597.6,2597.5,6.47843881]
[1723955415555,3.8496,2597.6,2597.5,6.47843881]
[1723955415957,7.0574,2597.6,2597.5,6.47843881]
[1723955416649,3.2078,2597.6,2597.5,6.47843881]
[1723955419165,3.2078,2597.6,2597.5,7.44076881]
[1723955419369,3.2078,2597.9,2597.5,10.32803881]
[1723955419670,3.2078,2597.9,2597.5,7.44074881]
[1723955420172,3.2078,2597.9,2597.5,6.47843881]
[1723955420681,2.77799126,2598.1,2597.5,6.47843881]
[1723955420682,3.2078,2597.6,2597.5,6.47843881]
[1723955420858,3.2078,2597.9,2597.5,6.47843881]
[1723955422865,3.2078,2597.9,2597.6,0.96227]
[1723955423062,3.2078,2597.9,2597.7,0.96225]
[1723955423269,3.2078,2597.9,2597.5,7.44075881]
[1723955423466,3.2078,2597.9,2597.5,11.29034881]
[1723955423768,3.2078,2597.9,2597.6,4.38805332]
[1723955423960,3.2078,2597.9,2597.5,6.47843881]
[1723955424156,3.2078,2597.6,2597.5,6.47843881]
[1723955424960,7.0574,2597.6,2597.5,6.47843881]
[1723955425857,8.01969,2597.6,2597.5,6.47843881]
[1723955426064,15.34769,2597.6,2597.5,6.47843881]
[1723955426460,9.3854,2597.6,2597.5,6.47843881]
[1723955426965,14.3854,2597.6,2597.5,6.47843881]
[1723955427158,15.34769,2597.6,2597.5,6.47843881]
[1723955427363,14.3854,2597.6,2597.5,6.47843881]
[1723955427566,7.0574,2597.6,2597.5,6.47843881]
[1723955427770,7.0574,2597.6,2597.5,6.83473881]
[1723955427771,3.2078,2597.6,2597.5,6.83473881]
[1723955429178,3.2078,2597.9,2597.5,6.83473881]
[1723955429466,3.2078,2597.9,2597.6,0.96227]
[1723955430373,3.2078,2597.9,2597.5,6.83473881]
[1723955430570,3.2078,2597.9,2597.7,0.96223]
[1723955431072,3.2078,2597.9,2597.8,0.3443]
[1723955431874,7.0574,2597.9,2597.8,0.3443]
[1723955432166,3.2078,2597.9,2597.8,0.3443]
[1723955433568,7.0574,2597.9,2597.8,0.3443]
[1723955433762,0.96224,2597.8,2597.5,6.83473881]
[1723955433959,3.2078,2597.6,2597.5,6.47843881]
[1723955434167,4.17009,2597.6,2597.5,6.47843881]
[1723955434463,13.01969,2597.6,2597.5,6.47843881]
[1723955434662,8.01969,2597.6,2597.5,6.47843881]
[1723955434874,15.34769,2597.6,2597.5,6.47843881]
[1723955435372,15.76627039,2597.6,2597.5,6.47843881]
[1723955436771,15.34769,2597.6,2597.5,6.47843881]
[1723955436980,15.76624009,2597.6,2597.5,6.47843881]
[1723955437360,16.75687352,2597.6,2597.5,6.47843881]
[1723955437964,17.25219024,2597.6,2597.5,6.47843881]
[1723955439272,15.84886611,2597.6,2597.5,6.47843881]
[1723955440267,17.83010124,2597.6,2597.5,6.47843881]
[1723955441471,15.43031236,2597.6,2597.5,6.47843881]
[1723955441775,15.8488425,2597.6,2597.5,6.47843881]
[1723955442367,16.39444477,2597.6,2597.5,6.47843881]
[1723955442565,15.8488425,2597.6,2597.5,6.47843881]
[1723955442769,18.88498451,2597.6,2597.5,6.47843881]
[1723955443577,16.63145019,2597.6,2597.5,6.47843881]
[1723955443766,16.63145019,2597.6,2597.5,5.12562881]
[1723955443767,22.12474066,2597.6,2597.5,5.12562881]
[1723955444080,17.59374019,2597.6,2597.5,5.12562881]
[1723955444381,17.59374019,2597.6,2596.0,0.00316723]
[1723955444382,0.96276,2596.4,2596.0,0.00316723]
[1723955444675,5.11778784,2596.3,2596.2,0.3618]
[1723955444972,3.81892403,2596.3,2596.2,0.3618]
[1723955445377,13.72047498,2596.3,2596.2,0.00497046]
[1723955445602,7.25654182,2596.3,2596.2,0.00497046]
[1723955445883,3.90546792,2596.3,2596.2,0.00497046]
[1723955446276,5.39561931,2596.3,2596.2,0.00497046]
[1723955446469,3.90546792,2596.3,2596.2,0.00497046]
[1723955446781,5.395629,2596.3,2596.2,0.00497046]
[1723955446982,5.20302868,2596.3,2596.2,0.00497046]
[1723955447179,0.4224326,2596.3,2596.2,0.73337046]
[1723955447380,3.6302326,2596.3,2596.2,0.73337046]
[1723955447569,5.12039368,2596.3,2596.2,4.58537046]
[1723955447773,1.4159091,2596.3,2596.2,4.58537046]
[1723955448467,4.6237091,2596.3,2596.2,4.58537046]
[1723955448669,0.4224326,2596.3,2596.2,4.58537046]
[1723955449084,0.4224326,2596.3,2596.2,5.54818046]
[1723955449278,1.49593075,2596.5,2596.2,4.58537046]
[1723955449279,0.99924617,2596.5,2596.2,4.58537046]
[1723955449475,0.41836795,2596.4,2596.3,0.96274]
[1723955449668,0.41836795,2596.4,2596.2,1.69617046]
[1723955449872,0.41836795,2596.3,2596.2,4.58537046]
[1723955450178,0.41836795,2596.3,2596.2,0.73337046]
[1723955450377,3.62984759,2596.3,2596.2,4.58537046]
[1723955450596,4.20495614,2596.3,2596.2,4.58537046]
[1723955450778,4.62324565,2596.3,2596.2,4.58537046]
[1723955451190,10.20991066,2596.3,2596.2,0.37637046]
[1723955451374,6.85553649,2596.3,2596.2,0.37637046]
[1723955451984,4.86774958,2596.3,2596.2,0.37637046]
[1723955452181,6.85553649,2596.3,2596.2,0.37637046]
[1723955452380,6.85553649,2596.3,2596.2,0.00497046]
[1723955452381,13.71974958,2596.3,2596.2,0.00497046]
[1723955452796,13.21885575,2596.3,2596.2,0.00497046]
[1723955452975,14.78217822,2596.3,2596.2,0.00497046]
[1723955453182,13.71939366,2596.3,2596.2,0.00497046]
[1723955453384,15.70103379,2596.3,2596.2,0.00497046]
[1723955453580,13.71939505,2596.3,2596.2,0.00497046]
[1723955453782,15.70100456,2596.3,2596.2,0.00497046]
[1723955454086,15.70094704,2596.3,2596.2,0.00497046]
[1723955454284,0.96285,2596.1,2596.0,0.00316723]
[1723955454589,0.96308,2595.5,2594.7,0.96337]
[1723955454782,3.2078,2595.0,2594.8,1.1092]
[1723955455282,3.2078,2595.0,2594.8,4.96584341]
[1723955455483,3.2078,2595.0,2594.8,1.11224341]
[1723955456474,3.2078,2595.0,2594.9,4.81689]
[1723955456779,3.2078,2595.0,2594.9,8.87392889]
[1723955456987,3.2078,2595.0,2594.9,13.87392889]
[1723955457208,0.00576967,2595.2,2595.1,0.96322]
[1723955457385,5.5358,2595.5,2595.1,0.96322]
[1723955457681,5.5358,2595.5,2594.8,1.11224341]
[1723955457880,3.2078,2595.8,2594.9,3.2078]
[1723955458087,3.2078,2595.8,2595.2,0.96318]
[1723955458384,3.31813326,2596.2,2595.2,0.96318]
[1723955458385,3.2078,2596.2,2595.3,7.28438229]
[1723955458586,3.2078,2596.2,2595.6,3.2078]
[1723955458795,0.00576967,2596.0,2595.8,0.96292]
[1723955458976,0.00576967,2596.0,2595.9,3.852]
[1723955459175,0.00576967,2596.0,2595.9,8.17885885]
[1723955459375,0.00576967,2596.0,2595.9,3.852]
[1723955460888,3.21147964,2596.3,2596.2,0.00603033]
[1723955461076,3.62948223,2596.3,2596.2,0.00603033]
[1723955461274,3.21147964,2596.3,2596.2,0.00603033]
[1723955461488,0.00367964,2596.3,2596.2,3.85803033]
[1723955461680,0.00367964,2596.3,2596.2,4.82084033]
[1723955462080,0.00367964,2596.3,2596.2,3.85803033]
[1723955462484,0.00367964,2596.3,2596.2,4.60113033]
[1723955462787,0.00367964,2596.3,2596.2,5.56394033]
[1723955463886,0.00367964,2596.3,2596.2,4.60113033]
[1723955464096,0.00367964,2596.3,2596.2,5.56394033]
[1723955464486,0.00367964,2596.3,2596.2,4.60113033]
[1723955465791,0.00367964,2596.3,2596.2,5.56394033]
[1723955466180,0.00367964,2596.3,2596.2,9.60113033]
[1723955466685,0.00367964,2596.3,2596.2,10.56394033]
[1723955467592,0.00576967,2596.5,2596.3,0.96275]
[1723955467796,0.00576967,2596.5,2596.4,0.96274]
[1723955468120,8.31379126,2597.3,2596.7,0.96261]
[1723955468393,5.5358,2597.3,2596.6,0.96264]
[1723955468604,5.5358,2597.3,2596.6,0.96706024]
[1723955468605,5.54001223,2597.3,2596.6,0.96706024]
[1723955468890,5.54001223,2597.3,2596.8,4.06390807]
[1723955469088,5.54001223,2597.3,2596.7,4.06390807]
[1723955469283,5.5457819,2597.3,2596.8,0.00576967]
[1723955470692,5.5457819,2597.3,2596.8,0.35756967]
[1723955471086,5.5457819,2597.3,2596.9,0.3435]
[1723955471880,0.0099819,2597.3,2597.0,0.96251]
[1723955472080,0.0099819,2597.3,2596.9,0.3435]
[1723955472685,0.0099819,2597.3,2596.9,1.30605]
[1723955473801,0.0099819,2597.3,2597.0,0.96249]
[1723955474381,0.0099819,2597.3,2596.9,1.30603]
[1723955474982,0.0099819,2597.3,2596.9,0.3435]
[1723955475187,3.2177819,2597.3,2596.9,0.3435]
[1723955475587,5.5457819,2597.3,2596.9,0.3435]
[1723955476283,5.5457819,2597.3,2596.8,0.35756967]
[1723955476486,5.5457819,2597.3,2596.8,0.00576967]
[1723955476487,1.34045,2597.2,2596.8,0.00576967]
[1723955476790,0.96248,2597.1,2596.8,0.00576967]
[1723955476985,3.2078,2597.0,2596.8,0.00576967]
[1723955477190,0.96255,2596.9,2596.8,0.00576967]
[1723955477391,5.5358,2597.0,2596.8,0.00576967]
[1723955477591,0.41808451,2596.9,2596.8,0.00576967]
[1723955478090,4.26928451,2596.9,2596.8,0.00576967]
[1723955478294,0.41808451,2596.9,2596.8,0.00576967]
[1723955478807,1.38063451,2596.9,2596.8,0.00576967]
[1723955479489,0.41808451,2596.9,2596.8,0.00576967]
[1723955482294,4.26928451,2596.9,2596.8,0.00576967]
[1723955482695,5.25941777,2596.9,2596.8,0.00576967]
[1723955483099,1.40821777,2596.9,2596.8,0.00576967]
[1723955483401,0.96259,2596.8,2596.6,0.00442024]
[1723955483600,7.90698815,2596.7,2596.6,0.00442024]
[1723955483792,7.28350451,2596.7,2596.6,0.00442024]
[1723955483990,0.96275,2596.4,2596.2,0.00603033]
[1723955484191,10.17208451,2596.7,2596.2,0.00603033]
[1723955484192,6.91653491,2596.3,2596.2,0.00603033]
[1723955484388,7.90695772,2596.3,2596.2,0.00603033]
[1723955484593,16.75873433,2596.3,2596.2,0.00603033]
[1723955484901,11.75862311,2596.3,2596.2,0.00603033]
[1723955485202,11.75862311,2596.3,2596.2,0.01086693]
[1723955485403,11.75862311,2596.3,2596.0,0.00576967]
[1723955485404,0.96285,2596.1,2596.0,0.00576967]
[1723955485603,1.38070369,2596.1,2596.0,0.00576967]
[1723955485900,5.23270369,2596.1,2596.0,0.00576967]
[1723955486102,0.41785369,2596.1,2596.0,0.00576967]
[1723955486400,0.99017465,2596.5,2596.0,12.07016124]
[1723955486605,3.2078,2596.6,2596.4,0.96273]
[1723955487005,3.2078,2596.6,2596.5,0.9627]
[1723955487303,3.2078,2596.6,2596.2,8.2908641]
[1723955487497,2.328,2596.9,2596.6,0.96263]
[1723955487696,0.41795538,2596.8,2596.7,0.3494]
[1723955488201,0.41795538,2596.8,2596.7,1.31202]
[1723955488404,0.41795538,2596.8,2596.7,0.3494]
[1723955489006,0.41797917,2596.8,2596.7,0.3494]
[1723955489596,3.62577917,2596.8,2596.2,0.3667]
[1723955489796,3.62577917,2596.8,2596.3,0.3696]
[1723955489797,3.2078,2596.8,2596.3,0.3696]
[1723955490009,3.2078,2596.8,2596.3,1.33235]
[1723955490310,2.328,2596.9,2596.3,3.5774]
[1723955490604,6.97596591,2597.1,2596.6,0.96266]
[1723955490807,0.41797972,2597.0,2596.6,0.96266]
[1723955491395,0.41797972,2597.0,2596.5,0.96268]
[1723955492302,0.41797972,2597.0,2596.3,3.5774]
[1723955492708,0.41797972,2597.0,2596.7,0.9626]
[1723955493005,0.41797972,2597.0,2596.8,4.01454128]
[1723955493211,0.41797972,2597.0,2596.9,0.3463]
[1723955493519,0.0099819,2597.3,2597.0,0.96251]
[1723955494007,0.0099819,2597.3,2597.0,4.81291]
[1723955494307,0.0099819,2597.3,2597.0,3.8504]
[1723955494512,0.0099819,2597.3,2597.2,0.96244]
[1723955495007,0.0099819,2597.3,2597.2,13.96206087]
[1723955495504,3.76816591,2598.0,2597.5,0.96229]
[1723955495706,5.8877,2598.1,2597.6,0.3654]
[1723955495707,5.5358,2598.1,2597.6,0.3654]
[1723955495897,0.99017465,2598.2,2597.6,0.3654]
[1723955495898,0.99017465,2598.3,2597.6,5.39882704]
[1723955496097,0.41829317,2598.2,2597.6,5.39882704]
[1723955496304,10.26596591,2598.4,2597.6,5.39882704]
[1723955496509,3.2078,2598.1,2597.6,5.39882704]
[1723955496694,0.00576967,2598.3,2597.8,3.2078]
[1723955497200,0.00576967,2598.3,2597.9,4.24273888]
[1723955497403,0.00576967,2598.3,2597.9,4.24685774]
[1723955498001,0.00576967,2598.3,2597.9,5.20902774]
[1723955498308,0.00576967,2598.3,2598.0,0.96213]
[1723955498704,0.00576967,2598.3,2598.1,0.3496]
[1723955499403,0.00576967,2598.3,2598.1,5.1605]
[1723955499604,0.00576967,2598.3,2598.2,0.375]
[1723955500003,0.00576967,2598.3,2598.2,4.2238]
[1723955500309,0.00576967,2598.3,2598.1,0.3496]
[1723955502809,0.00576967,2598.3,2598.1,4.5655]
[1723955503609,0.00576967,2598.3,2598.1,5.5276]
[1723955503817,0.00576967,2598.3,2598.2,0.96207]
[1723955504011,0.00576967,2598.3,2598.2,4.81087]
[1723955504321,5.5358,2599.0,2598.5,0.96192]
[1723955504503,5.5358,2599.0,2598.6,1.32232]
[1723955504709,5.5358,2599.0,2598.7,0.3671]
[1723955505113,3.2078,2599.0,2598.7,4.2151]
[1723955505324,3.21263004,2599.0,2598.8,4.37521159]
[1723955505914,3.21263004,2599.0,2598.8,8.22321159]
[1723955506511,0.00483004,2599.0,2598.8,8.22321159]
[1723955506719,0.00483004,2599.0,2598.9,4.80981]
[1723955506912,0.00483004,2599.0,2598.9,3.848]
[1723955507222,0.00483004,2599.0,2598.9,14.1776983]
[1723955507405,0.00483004,2599.0,2598.9,14.5220983]
[1723955508511,0.00483004,2599.0,2598.9,10.6740983]
[1723955508713,0.00483004,2599.0,2598.9,14.5220983]
[1723955508918,0.00576967,2599.1,2599.0,0.96177]
[1723955509113,0.00576967,2599.1,2599.0,4.80977]
[1723955509327,0.00576967,2599.1,2599.0,13.96493262]
[1723955509911,0.0100131,2599.1,2599.0,13.96493262]
[1723955511816,0.0100131,2599.1,2599.0,8.00316262]
[1723955512017,0.0100131,2599.1,2599.0,3.8472]
[1723955512414,0.0100131,2599.1,2598.6,0.3604]
[1723955517019,0.0100131,2599.1,2598.6,1.32232]
[1723955518124,0.0100131,2599.1,2598.6,1.3223]
[1723955518314,0.0100131,2599.1,2598.7,0.96186]
[1723955518531,0.0100131,2599.1,2598.7,5.13406882]
[1723955518727,0.0100131,2599.1,2598.8,0.96183]
[1723955519030,0.0100131,2599.1,2598.9,4.44987443]
[1723955519320,0.0100131,2599.1,2598.9,0.3625]
[1723955521621,0.0100131,2599.1,2598.6,1.3223]
[1723955521824,0.0100131,2599.1,2598.6,1.696]
[1723955523226,0.0100131,2599.1,2598.6,0.7341]
[1723955523424,3.2078,2598.9,2598.6,0.7341]
[1723955523620,0.0100131,2599.1,2598.6,0.7341]
[1723955524013,0.9717631,2599.1,2598.6,0.7341]
[1723955526222,0.0100131,2599.1,2598.6,0.7341]
[1723955526920,0.9717631,2599.1,2598.6,0.7341]
[1723955527320,0.9618,2599.0,2598.6,0.7341]
[1723955528322,0.96186,2598.8,2598.3,0.3437]
[1723955528528,7.24683,2598.9,2598.3,0.3437]
[1723955528715,7.24682,2598.9,2598.3,0.3437]
[1723955529121,6.285,2598.9,2598.3,0.3437]
[1723955529324,3.2078,2598.9,2598.3,0.3437]
[1723955529527,3.2078,2598.9,2598.4,0.96197]
[1723955529824,0.0100131,2599.1,2598.6,3.2078]
[1723955530028,0.0100131,2599.1,2599.0,0.96177]
[1723955530819,0.0100131,2599.1,2599.0,4.80897]
[1723955531016,0.0100131,2599.1,2599.0,8.14966393]
[1723955531830,0.0100131,2599.1,2599.0,9.11143393]
[1723955532622,0.0100131,2599.1,2599.0,14.45733393]
[1723955532833,5.47959126,2599.8,2599.3,0.96163]
[1723955532834,2.77799126,2599.8,2599.3,0.96163]
[1723955533159,3.2078,2600.0,2599.4,0.7518]
[1723955533834,3.21129467,2600.0,2599.4,0.75756967]
[1723955534123,3.21706434,2600.0,2599.4,0.75756967]
[1723955534328,4.17847434,2600.0,2599.4,0.75756967]
[1723955535025,3.21706434,2600.0,2599.4,0.75756967]
[1723955535232,0.96145,2599.9,2599.4,0.37756967]
[1723955535430,3.21706434,2600.0,2599.4,0.37756967]
[1723955535431,4.17848434,2600.0,2599.4,0.37756967]
[1723955537436,0.41830246,2599.9,2599.4,0.37756967]
[1723955537728,3.21706434,2600.0,2599.4,0.37756967]
[1723955538028,3.21706434,2600.0,2599.4,1.33916967]
[1723955538029,0.41830248,2599.9,2599.4,1.33916967]
[1723955538238,3.21706434,2600.0,2599.4,0.37756967]
[1723955538436,0.41830455,2599.9,2599.6,0.96153]
[1723955538922,3.21706434,2600.0,2599.7,5.5892622]
[1723955539231,3.21706434,2600.0,2599.7,4.9853622]
[1723955539437,3.21706434,2600.0,2599.7,5.9468622]
[1723955539740,3.21706434,2600.0,2599.7,4.9853622]
[1723955539922,3.21706434,2600.0,2599.4,0.37756967]
[1723955539923,0.96148,2599.8,2599.4,0.37756967]
[1723955540236,3.21706434,2600.0,2599.4,0.37756967]
[1723955540237,0.699,2599.9,2599.4,0.37756967]
[1723955540433,0.41834257,2599.8,2599.4,0.37756967]
[1723955540734,0.41834257,2599.7,2599.4,0.37756967]
[1723955540923,1.68917465,2599.9,2599.4,0.37756967]
[1723955540924,0.41834257,2599.6,2599.4,0.37756967]
[1723955541126,0.99017465,2599.8,2599.4,0.37756967]
[1723955541348,0.41833703,2599.7,2599.4,0.37756967]
[1723955541522,0.99017465,2599.8,2599.4,0.37756967]
[1723955541523,0.41833703,2599.6,2599.4,0.37756967]
[1723955541731,0.41834771,2599.5,2599.4,0.37756967]
[1723955542120,0.41834771,2599.5,2599.4,4.22476967]
[1723955543427,0.41834771,2599.5,2599.4,5.18638967]
[1723955543629,1.84012547,2599.9,2599.5,0.96156]
[1723955543630,0.99017465,2599.9,2599.5,0.96156]
[1723955543824,0.41844521,2599.8,2599.6,0.3678]
[1723955544030,0.41844521,2599.7,2599.6,4.40190325]
[1723955544231,0.41844521,2599.7,2599.6,0.3678]
[1723955544433,0.41844521,2599.8,2599.6,0.3678]
[1723955544736,0.99017465,2599.9,2599.6,0.3678]
[1723955544737,0.41844521,2599.7,2599.6,0.3678]
[1723955544932,0.41844521,2599.8,2599.6,0.3678]
[1723955545138,0.41844521,2599.7,2599.6,0.3678]
[1723955545332,0.41844521,2599.8,2599.6,0.3678]
[1723955545533,0.41844521,2599.7,2599.6,0.3678]
[1723955545832,0.41844521,2599.8,2599.6,0.3678]
[1723955546034,0.99017465,2599.9,2599.6,0.3678]
[1723955546035,0.41844521,2599.7,2599.6,0.3678]
[1723955546234,0.41844521,2599.7,2599.6,1.32934]
[1723955546430,0.41844521,2599.8,2599.6,4.2142]
[1723955546635,0.99017465,2599.9,2599.6,0.3678]
[1723955546636,0.41844521,2599.7,2599.6,0.3678]
[1723955546832,0.41844521,2599.8,2599.6,0.3678]
[1723955547036,0.41844521,2599.7,2599.6,0.3678]
[1723955547233,0.41844521,2599.8,2599.6,0.3678]
[1723955547534,0.41844521,2599.7,2599.6,0.3678]
[1723955547840,0.41844521,2599.8,2599.6,0.3678]
[1723955548138,0.41844521,2599.7,2599.6,0.3678]
[1723955548328,0.41870793,2599.7,2599.6,0.3678]
[1723955548523,0.41870793,2599.7,2599.6,4.2142]
[1723955548731,0.41870793,2599.7,2599.4,0.37756967]
[1723955549032,0.99017465,2599.8,2599.5,4.33628254]
[1723955549329,0.41871632,2599.7,2599.4,0.37756967]
[1723955549526,0.41871632,2599.6,2599.5,0.011]
[1723955549727,1.40889097,2599.6,2599.5,0.011]
[1723955549934,0.41871632,2599.6,2599.5,0.011]
[1723955550545,1.90444179,2599.6,2599.5,0.011]
[1723955550924,0.41871632,2599.6,2599.5,0.011]
[1723955551135,1.90444179,2599.6,2599.5,0.011]
[1723955552732,5.75164179,2599.6,2599.5,0.011]
[1723955554036,1.90444179,2599.6,2599.5,0.011]
[1723955554930,1.48572547,2599.6,2599.5,0.011]
[1723955555128,1.90442415,2599.6,2599.5,0.011]
[1723955556540,1.41395296,2599.6,2599.5,0.011]
[1723955558640,0.99525428,2599.6,2599.5,0.011]
[1723955558941,1.4139621,2599.6,2599.5,0.011]
[1723955559342,0.41870782,2599.6,2599.5,0.97259]
[1723955559643,0.41870782,2599.6,2599.5,0.011]
[1723955561032,0.41870782,2599.6,2599.5,0.97259]
[1723955562042,0.41870782,2599.6,2599.5,9.0281176]
[1723955562531,0.41879316,2599.6,2599.5,9.0281176]
[1723955565143,0.41879316,2599.6,2599.5,8.0665276]
[1723955565343,0.41879316,2599.6,2599.5,9.0281176]
[1723955566150,0.41879316,2599.6,2599.5,12.2359176]
[1723955566560,0.99525428,2599.9,2599.7,0.96151]
[1723955566837,0.99525428,2599.9,2599.8,0.3476]
[1723955567042,1.41406639,2599.9,2599.8,0.35255979]
[1723955567343,0.41881211,2599.9,2599.8,8.36823979]
[1723955568143,0.41881211,2599.9,2599.8,3.56035979]
[1723955568643,0.41881211,2599.9,2599.8,0.35255979]
[1723955569249,0.41881211,2599.9,2599.8,5.16043979]
[1723955570461,0.41883006,2599.9,2599.8,5.16043979]
[1723955573650,0.41883006,2599.9,2599.8,8.36823979]
[1723955575851,0.41883006,2599.9,2599.8,12.64667276]
[1723955577861,1.00451862,2600.0,2599.9,0.96144]
[1723955578055,1.42335364,2600.0,2599.9,4.80784]
[1723955578256,1.42335364,2600.0,2599.9,9.46818423]
[1723955578661,1.42335711,2600.0,2599.9,9.46818423]
[1723955579050,0.42810283,2600.0,2599.9,9.46818423]
[1723955581391,0.42810283,2600.0,2599.9,14.46818423]
[1723955581571,0.4281771,2600.0,2599.9,15.47140633]
[1723955581754,0.00926434,2600.0,2599.9,15.47140633]
[1723955581948,0.00926434,2600.0,2599.9,17.39411619]
[1723955582155,0.00926434,2600.0,2599.9,15.47140633]
[1723955583161,0.99525428,2600.4,2600.3,0.96129]
[1723955583363,1.4141561,2600.4,2599.9,8.87136633]
[1723955583548,0.41890182,2600.3,2600.1,0.969]
[1723955583751,0.41890182,2600.2,2600.1,1.93037]
[1723955584155,0.42322875,2600.2,2600.1,6.13557]
[1723955584656,0.42322875,2600.2,2600.1,15.41777909]
[1723955585354,0.00432693,2600.2,2600.1,15.41777909]
[1723955589062,0.00432693,2600.2,2600.1,10.41777909]
[1723955589464,0.00432693,2600.2,2600.1,15.41777909]
[1723955589692,0.00432693,2600.2,2600.1,10.41777909]
[1723955590274,0.00432693,2600.2,2600.1,15.41777909]
[1723955590962,0.00380846,2600.4,2600.3,0.96129]
[1723955591162,0.00380846,2600.4,2600.3,8.98369]
[1723955591365,0.00380846,2600.4,2600.3,13.21656848]
[1723955591861,0.00711797,2600.4,2600.3,13.21656848]
[1723955592371,0.00711797,2600.4,2600.3,9.37096848]
[1723955592665,0.00711797,2600.4,2600.3,8.40967848]
[1723955592867,0.42608389,2600.4,2600.3,8.40967848]
[1723955593165,0.00711797,2600.4,2600.3,8.40967848]
[1723955593667,0.00711797,2600.4,2600.3,13.21656848]
[1723955594069,0.00711797,2600.4,2600.3,12.25527848]
[1723955594467,0.00711797,2600.4,2600.3,12.62917848]
[1723955596266,0.00711797,2600.4,2600.3,13.59046848]
[1723955598366,0.00711797,2600.4,2600.3,18.59046848]
[1723955598975,0.00711797,2600.4,2600.3,13.59046848]
[1723955599168,0.00711797,2600.4,2600.3,18.59046848]
[1723955599669,0.00711797,2600.4,2600.3,18.97526848]
[1723955599863,0.00711797,2600.4,2600.3,13.94926848]
[1723955600064,0.99525428,2600.9,2600.7,0.96112]
[1723955600271,0.99525428,2600.9,2600.8,1.3186]
[1723955600473,1.41436466,2600.9,2600.8,6.85678548]
[1723955600670,1.41436466,2600.9,2600.7,3.2078]